fUSD/lending_fUSD_20250211
["ID","MTS","AMOUNT","RATE_DAILY","PERIOD"]
[352737415,1739283085846,-338.57963433,0.0001178,2]
[352737416,1739283085856,-500.0,0.0001178,2]
[352737417,1739283085866,-500.0,0.0001178,2]
[352737418,1739283085875,-500.0,0.0001178,2]
[352737419,1739283085885,-500.0,0.0001178,2]
[352737420,1739283085895,-500.0,0.0001178,2]
[352737421,1739283085905,-304.38769662,0.0001178,2]
[352737422,1739283085914,-545.31,0.0001178,2]
[352737423,1739283085923,-500.0,0.0001178,2]
[352737424,1739283085933,-500.0,0.0001178,2]
[352737425,1739283085943,-500.0,0.0001178,2]
[352737426,1739283085953,-500.0,0.0001178,2]
[352737427,1739283085962,-623.89,0.0001178,2]
[352737428,1739283085971,-2289.514115,0.0001178,2]
[352737429,1739283085980,-160.739921,0.0001178,2]
[352737430,1739283085990,-500.0,0.0001178,2]
[352737431,1739283085999,-912.071354,0.0001178,2]
[352737432,1739283086009,-562.39,0.0001178,2]
[352737433,1739283086019,-500.0,0.0001178,2]
[352737434,1739283086029,-1335.42,0.0001178,2]
[352737435,1739283086039,-500.0,0.0001178,2]
[352737436,1739283086049,-500.0,0.0001178,2]
[352737437,1739283086064,-500.0,0.0001178,2]
[352737438,1739283086074,-500.0,0.0001178,2]
[352737439,1739283086083,-500.0,0.0001178,2]
[352737440,1739283086093,-500.0,0.0001178,2]
[352737441,1739283086103,-1026.73,0.0001178,2]
[352737442,1739283086112,-500.0,0.0001178,2]
[352737443,1739283086122,-500.0,0.0001178,2]
[352737444,1739283086131,-1291.73,0.0001178,2]
[352737445,1739283086141,-500.0,0.0001178,2]
[352737446,1739283086151,-500.0,0.0001178,2]
[352737447,1739283086160,-500.0,0.0001178,2]
[352737448,1739283086170,-500.0,0.0001178,2]
[352737449,1739283086180,-1006.21,0.0001178,2]
[352737450,1739283086189,-500.0,0.0001178,2]
[352737451,1739283086198,-654.08,0.0001178,2]
[352737452,1739283086208,-500.0,0.0001178,2]
[352737453,1739283086217,-199.77294451,0.0001178,2]
[352737454,1739283086227,-638.54194378,0.0001178,2]
[352737455,1739283086236,-500.0,0.0001178,2]
[352737456,1739283086245,-500.0,0.0001178,2]
[352737457,1739283086254,-648.91,0.0001178,2]
[352737458,1739283086266,-500.0,0.0001178,2]
[352737459,1739283086275,-500.0,0.0001178,2]
[352737460,1739283086285,-829.91,0.0001178,2]
[352737461,1739283086295,-500.0,0.0001178,2]
[352737462,1739283086307,-505.77326014,0.0001178,2]
[352737463,1739283086317,-1283.05,0.0001178,2]
[352737464,1739283086327,-500.0,0.0001178,2]
[352737465,1739283086337,-500.0,0.0001178,2]
[352737466,1739283086348,-627.22,0.0001178,2]
[352737467,1739283086359,-784.62,0.0001178,2]
[352737468,1739283086369,-500.0,0.0001178,2]
[352737469,1739283086379,-500.0,0.0001178,2]
[352737470,1739283086389,-500.0,0.0001178,2]
[352737471,1739283086399,-500.0,0.0001178,2]
[352737472,1739283086409,-500.0,0.0001178,2]
[352737473,1739283086418,-500.0,0.0001178,2]
[352737474,1739283086428,-500.0,0.0001178,2]
[352737475,1739283086437,-500.0,0.0001178,2]
[352737476,1739283086447,-1049.93,0.0001178,2]
[352737477,1739283086456,-500.0,0.0001178,2]
[352737478,1739283086466,-656.24,0.0001178,2]
[352737479,1739283086475,-500.0,0.0001178,2]
[352737480,1739283086485,-500.0,0.0001178,2]
[352737481,1739283086495,-717.49,0.0001178,2]
[352737482,1739283086504,-750.73,0.0001178,2]
[352737483,1739283086513,-899.58,0.0001178,2]
[352737484,1739283086523,-500.0,0.0001178,2]
[352737485,1739283086533,-951.35,0.0001178,2]
[352737486,1739283086542,-500.0,0.0001178,2]
[352737487,1739283086552,-1059.29,0.0001178,2]
[352737488,1739283086565,-500.0,0.0001178,2]
[352737489,1739283086575,-1079.43,0.0001178,2]
[352737490,1739283086584,-771.17,0.0001178,2]
[352737491,1739283086594,-500.0,0.0001178,2]
[352737492,1739283086603,-621.99320723,0.0001178,2]
[352737493,1739283086612,-500.0,0.0001178,2]
[352737494,1739283086623,-621.59,0.0001178,2]
[352737495,1739283086636,-500.0,0.0001178,2]
[352737496,1739283086646,-500.0,0.0001178,2]
[352737497,1739283086656,-500.0,0.0001178,2]
[352737498,1739283086666,-500.0,0.0001178,2]
[352737499,1739283086678,-643.2,0.0001178,2]
[352737500,1739283086688,-772.38,0.0001178,2]
[352737501,1739283086698,-637.38,0.0001178,2]
[352737502,1739283086708,-564.18,0.0001178,2]
[352737503,1739283086718,-500.0,0.0001178,2]
[352737504,1739283086728,-500.0,0.0001178,2]
[352737505,1739283086738,-562.5,0.0001178,2]
[352737506,1739283086748,-726.26,0.0001178,2]
[352737507,1739283086757,-500.0,0.0001178,2]
[352737508,1739283086767,-500.0,0.0001178,2]
[352737509,1739283086776,-500.0,0.0001178,2]
[352737510,1739283086785,-500.0,0.0001178,2]
[352737511,1739283086795,-500.0,0.0001178,2]
[352737512,1739283086806,-500.0,0.0001178,2]
[352737513,1739283086815,-500.0,0.0001178,2]
[352737514,1739283086825,-657.71,0.0001178,2]
[352737515,1739283086835,-545.49,0.0001178,2]
[352737516,1739283086844,-947.55,0.0001178,2]
[352737517,1739283086854,-500.0,0.0001178,2]
[352737518,1739283086864,-500.0,0.0001178,2]
[352737519,1739283086874,-500.0,0.0001178,2]
[352737520,1739283086884,-500.0,0.0001178,2]
[352737521,1739283086894,-500.0,0.0001178,2]
[352737522,1739283086904,-500.0,0.0001178,2]
[352737523,1739283086915,-791.02,0.0001178,2]
[352737524,1739283086924,-594.78,0.0001178,2]
[352737525,1739283086934,-899.13,0.0001178,2]
[352737526,1739283086944,-500.0,0.0001178,2]
[352737527,1739283086954,-723.56,0.0001178,2]
[352737528,1739283086965,-623.3,0.0001178,2]
[352737529,1739283086975,-500.0,0.0001178,2]
[352737530,1739283086985,-602.04,0.0001178,2]
[352737531,1739283086995,-634.43,0.0001178,2]
[352737532,1739283087005,-500.0,0.0001178,2]
[352737533,1739283087015,-689.47,0.0001178,2]
[352737534,1739283087024,-500.0,0.0001178,2]
[352737535,1739283087035,-500.0,0.0001178,2]
[352737536,1739283087044,-500.0,0.0001178,2]
[352737537,1739283087056,-500.0,0.0001178,2]
[352737538,1739283087066,-500.0,0.0001178,2]
[352737539,1739283087076,-999.07,0.0001178,2]
[352737540,1739283087086,-2000.0,0.0001178,2]
[352737541,1739283087096,-500.0,0.0001178,2]
[352737542,1739283087106,-961.83,0.0001178,2]
[352737543,1739283087116,-500.0,0.0001178,2]
[352737544,1739283087126,-932.98,0.0001178,2]
[352737545,1739283087135,-500.0,0.0001178,2]
[352737546,1739283087145,-500.0,0.0001178,2]
[352737547,1739283087155,-662.81,0.0001178,2]
[352737548,1739283087165,-541.66,0.0001178,2]
[352737549,1739283087175,-722.67,0.0001178,2]
[352737550,1739283087184,-500.0,0.0001178,2]
[352737551,1739283087193,-500.0,0.0001178,2]
[352737552,1739283087203,-500.0,0.0001178,2]
[352737553,1739283087212,-500.0,0.0001178,2]
[352737554,1739283087222,-500.0,0.0001178,2]
[352737555,1739283087232,-1030.45,0.0001178,2]
[352737556,1739283087241,-500.0,0.0001178,2]
[352737557,1739283087251,-835.87,0.0001178,2]
[352737558,1739283087260,-750.85,0.0001178,2]
[352737559,1739283087270,-500.0,0.0001178,2]
[352737560,1739283087279,-500.0,0.0001178,2]
[352737561,1739283087289,-500.0,0.0001178,2]
[352737562,1739283087298,-500.0,0.0001178,2]
[352737563,1739283087309,-500.0,0.0001178,2]
[352737564,1739283087319,-500.0,0.0001178,2]
[352737565,1739283087328,-500.0,0.0001178,2]
[352737566,1739283087337,-500.0,0.0001178,2]
[352737567,1739283087346,-500.0,0.0001178,2]
[352737568,1739283087356,-500.0,0.0001178,2]
[352737569,1739283087365,-500.0,0.0001178,2]
[352737570,1739283087375,-500.0,0.0001178,2]
[352737571,1739283087384,-500.0,0.0001178,2]
[352737572,1739283087394,-1038.04,0.0001178,2]
[352737573,1739283087403,-655.85,0.0001178,2]
[352737574,1739283087414,-500.0,0.0001178,2]
[352737575,1739283087424,-626.7,0.0001178,2]
[352737576,1739283087434,-500.0,0.0001178,2]
[352737577,1739283087444,-500.0,0.0001178,2]
[352737578,1739283087453,-581.18,0.0001178,2]
[352737579,1739283087464,-650.34,0.0001178,2]
[352737580,1739283087474,-500.0,0.0001178,2]
[352737581,1739283087484,-320.99127175,0.0001178,2]
[352737582,1739283087494,-557.62,0.0001178,2]
[352737583,1739283087503,-1181.79,0.0001178,2]
[352737584,1739283087512,-552.27,0.0001178,2]
[352737585,1739283087522,-982.11,0.0001178,2]
[352737586,1739283087531,-637.32,0.0001178,2]
[352737587,1739283087541,-500.0,0.0001178,2]
[352737588,1739283087550,-500.0,0.0001178,2]
[352737589,1739283087562,-500.0,0.0001178,2]
[352737590,1739283087571,-621.63,0.0001178,2]
[352737591,1739283087581,-720.74,0.0001178,2]
[352737592,1739283087591,-500.0,0.0001178,2]
[352737593,1739283087601,-756.12,0.0001178,2]
[352737594,1739283087610,-500.0,0.0001178,2]
[352737595,1739283087622,-500.0,0.0001178,2]
[352737596,1739283087634,-540.21,0.0001178,2]
[352737597,1739283087644,-500.0,0.0001178,2]
[352737598,1739283087653,-500.0,0.0001178,2]
[352737599,1739283087664,-500.0,0.0001178,2]
[352737600,1739283087675,-1099.61,0.0001178,2]
[352737601,1739283087684,-543.05,0.0001178,2]
[352737602,1739283087694,-735.96,0.0001178,2]
[352737603,1739283087705,-1136.7,0.0001178,2]
[352737604,1739283087715,-176.03,0.0001178,2]
[352737605,1739283087725,-500.0,0.0001178,2]
[352737606,1739283087734,-500.0,0.0001178,2]
[352737607,1739283087743,-500.0,0.0001178,2]
[352737608,1739283087753,-875.16,0.0001178,2]
[352737609,1739283087763,-580.72,0.0001178,2]
[352737610,1739283087773,-500.0,0.0001178,2]
[352737611,1739283087782,-500.0,0.0001178,2]
[352737612,1739283087792,-1187.47,0.0001178,2]
[352737613,1739283087802,-1053.93,0.0001178,2]
[352737614,1739283087816,-635.88,0.0001178,2]
[352737615,1739283087826,-1017.56,0.0001178,2]
[352737616,1739283087835,-683.09,0.0001178,2]
[352737617,1739283087845,-1174.81,0.0001178,2]
[352737618,1739283087854,-500.0,0.0001178,2]
[352737619,1739283087863,-500.0,0.0001178,2]
[352737620,1739283087872,-518.87,0.0001178,2]
[352737621,1739283087882,-641.21,0.0001178,2]
[352737622,1739283087893,-515.4,0.0001178,2]
[352737623,1739283087903,-811.4,0.0001178,2]
[352737624,1739283087912,-500.0,0.0001178,2]
[352737625,1739283087922,-2279.79,0.0001178,2]
[352737626,1739283087932,-500.0,0.0001178,2]
[352737627,1739283087942,-500.0,0.0001178,2]
[352737628,1739283087951,-1026.36,0.0001178,2]
[352737629,1739283087961,-500.0,0.0001178,2]
[352737630,1739283087971,-500.0,0.0001178,2]
[352737631,1739283087981,-544.63,0.0001178,2]
[352737632,1739283087992,-1181.86,0.0001178,2]
[352737633,1739283088002,-500.0,0.0001178,2]
[352737634,1739283088012,-483.29205865,0.0001178,2]
[352737635,1739283088022,-678.67,0.0001178,2]
[352737636,1739283088032,-500.0,0.0001178,2]
[352737637,1739283088042,-1235.55,0.0001178,2]
[352737638,1739283088052,-500.0,0.0001178,2]
[352737639,1739283088064,-500.0,0.0001178,2]
[352737640,1739283088074,-500.0,0.0001178,2]
[352737641,1739283088084,-2015.94,0.0001178,2]
[352737642,1739283088093,-638.72,0.0001178,2]
[352737643,1739283088103,-500.0,0.0001178,2]
[352737644,1739283088114,-500.0,0.0001178,2]
[352737645,1739283088124,-884.07,0.0001178,2]
[352737646,1739283088134,-1344.05,0.0001178,2]
[352737647,1739283088273,-500.0,0.0001178,2]
[352737648,1739283088287,-157.862353,0.0001178,2]
[352737649,1739283088297,-500.0,0.0001178,2]
[352737650,1739283088308,-1667.76,0.0001178,2]
[352737651,1739283088317,-500.0,0.0001178,2]
[352737652,1739283088326,-515.7,0.0001178,2]
[352737653,1739283088335,-522.2,0.0001178,2]
[352737654,1739283088344,-500.0,0.0001178,2]
[352737655,1739283088354,-1113.72,0.0001178,2]
[352737656,1739283088363,-500.0,0.0001178,2]
[352737657,1739283088372,-757.59,0.0001178,2]
[352737658,1739283088381,-1179.03,0.0001178,2]
[352737659,1739283088391,-808.33,0.0001178,2]
[352737660,1739283088401,-1282.85,0.0001178,2]
[352737661,1739283088411,-500.0,0.0001178,2]
[352737662,1739283088420,-1795.37,0.0001178,2]
[352737663,1739283088430,-1850.76,0.0001178,2]
[352737664,1739283088439,-603.62,0.0001178,2]
[352737665,1739283088449,-500.0,0.0001178,2]
[352737666,1739283088458,-500.0,0.0001178,2]
[352737667,1739283088468,-1151.05,0.0001178,2]
[352737668,1739283088478,-1119.24,0.0001178,2]
[352737669,1739283088487,-500.0,0.0001178,2]
[352737670,1739283088496,-1347.78,0.0001178,2]
[352737671,1739283088506,-819.33,0.0001178,2]
[352737672,1739283088515,-1536.44,0.0001178,2]
[352737673,1739283088525,-892.03,0.0001178,2]
[352737674,1739283088535,-500.0,0.0001178,2]
[352737675,1739283088544,-2017.38,0.0001178,2]
[352737676,1739283088553,-948.75,0.0001178,2]
[352737677,1739283088564,-526.05,0.0001178,2]
[352737678,1739283088574,-582.46,0.0001178,2]
[352737679,1739283088584,-683.75,0.0001178,2]
[352737680,1739283088594,-657.71,0.0001178,2]
[352737681,1739283088603,-2105.16,0.0001178,2]
[352737682,1739283088612,-1725.88,0.0001178,2]
[352737683,1739283088625,-500.0,0.0001178,2]
[352737684,1739283088635,-634.23,0.0001178,2]
[352737685,1739283088645,-1375.79,0.0001178,2]
[352737686,1739283088654,-582.27,0.0001178,2]
[352737687,1739283088665,-1848.33,0.0001178,2]
[352737688,1739283088674,-500.0,0.0001178,2]
[352737689,1739283088683,-853.65,0.0001178,2]
[352737690,1739283088693,-500.0,0.0001178,2]
[352737691,1739283088703,-1602.84,0.0001178,2]
[352737692,1739283088713,-1126.45,0.0001178,2]
[352737693,1739283088723,-500.0,0.0001178,2]
[352737694,1739283088732,-1623.28,0.0001178,2]
[352737695,1739283088741,-1955.0,0.0001178,2]
[352737696,1739283088751,-1095.96,0.0001178,2]
[352737697,1739283088760,-1427.46,0.0001178,2]
[352737698,1739283088769,-733.7,0.0001178,2]
[352737699,1739283088779,-500.0,0.0001178,2]
[352737700,1739283088788,-1892.51,0.0001178,2]
[352737701,1739283088797,-636.24,0.0001178,2]
[352737702,1739283088809,-500.0,0.0001178,2]
[352737703,1739283088818,-1207.29,0.0001178,2]
[352737704,1739283088827,-507.93,0.0001178,2]
[352737705,1739283088836,-1791.03,0.0001178,2]
[352737706,1739283088846,-1757.72,0.0001178,2]
[352737707,1739283088855,-500.0,0.0001178,2]
[352737708,1739283088865,-1102.03,0.0001178,2]
[352737709,1739283088874,-401.68391832,0.0001178,2]
[352737710,1739283088884,-151.0,0.0001178,2]
[352737711,1739283088893,-2171.34,0.0001178,2]
[352737712,1739283088903,-713.64,0.0001178,2]
[352737713,1739283088913,-500.0,0.0001178,2]
[352737714,1739283088923,-4488.97,0.0001178,2]
[352737715,1739283088933,-1078.79,0.0001178,2]
[352737716,1739283088943,-1189.98,0.0001178,2]
[352737717,1739283088953,-2231.76,0.0001178,2]
[352737718,1739283088962,-3213.91,0.0001178,2]
[352737719,1739283088972,-1985.57,0.0001178,2]
[352737720,1739283088982,-500.0,0.0001178,2]
[352737721,1739283088992,-500.0,0.0001178,2]
[352737722,1739283089002,-2233.07,0.0001178,2]
[352737723,1739283089012,-2042.81,0.0001178,2]
[352737724,1739283089022,-389.29,0.0001178,2]
[352737725,1739283089032,-1475.61,0.0001178,2]
[352737726,1739283089042,-500.0,0.0001178,2]
[352737727,1739283089051,-810.69,0.0001178,2]
[352737728,1739283089063,-500.0,0.0001178,2]
[352737729,1739283089072,-356.87509664,0.0001178,2]
[352737730,1739283089082,-2371.13,0.0001178,2]
[352737731,1739283089091,-700.09,0.0001178,2]
[352737732,1739283089101,-1214.76,0.0001178,2]
[352737733,1739283089111,-2171.63,0.0001178,2]
[352737734,1739283089120,-2387.02,0.0001178,2]
[352737735,1739283089129,-620.08,0.0001178,2]
[352737736,1739283089139,-2310.94,0.0001178,2]
[352737737,1739283089149,-2340.95,0.0001178,2]
[352737738,1739283089158,-500.0,0.0001178,2]
[352737739,1739283089168,-1886.51,0.0001178,2]
[352737740,1739283089177,-5444.75,0.0001178,2]
[352737741,1739283089186,-2886.17,0.0001178,2]
[352737742,1739283089196,-500.0,0.0001178,2]
[352737743,1739283089206,-727.8,0.0001178,2]
[352737744,1739283089216,-707.04,0.0001178,2]
[352737745,1739283089225,-2343.44,0.0001178,2]
[352737746,1739283089234,-500.0,0.0001178,2]
[352737747,1739283089244,-937.33,0.0001178,2]
[352737748,1739283089254,-1158.26,0.0001178,2]
[352737749,1739283089264,-500.0,0.0001178,2]
[352737750,1739283089273,-670.35,0.0001178,2]
[352737751,1739283089283,-500.0,0.0001178,2]
[352737752,1739283089292,-2558.39,0.0001178,2]
[352737753,1739283089302,-620.78,0.0001178,2]
[352737754,1739283089312,-2007.68,0.0001178,2]
[352737755,1739283089323,-2648.76,0.0001178,2]
[352737756,1739283089333,-2171.75,0.0001178,2]
[352737757,1739283089344,-2434.45,0.0001178,2]
[352737758,1739283089354,-731.57,0.0001178,2]
[352737759,1739283089364,-2583.49,0.0001178,2]
[352737760,1739283089374,-2031.5,0.0001178,2]
[352737761,1739283089384,-151.0,0.0001178,2]
[352737762,1739283089394,-3062.38,0.0001178,2]
[352737763,1739283089404,-500.0,0.0001178,2]
[352737764,1739283089413,-1845.16,0.0001178,2]
[352737765,1739283089423,-3061.99,0.0001178,2]
[352737766,1739283089433,-2068.15,0.0001178,2]
[352737767,1739283089443,-151.0,0.0001178,2]
[352737768,1739283089452,-1009.34,0.0001178,2]
[352737769,1739283089462,-2900.54,0.0001178,2]
[352737770,1739283089471,-2626.43,0.0001178,2]
[352737771,1739283089481,-500.0,0.0001178,2]
[352737772,1739283089491,-2213.47,0.0001178,2]
[352737773,1739283089501,-1085.29,0.0001178,2]
[352737774,1739283089511,-2309.34,0.0001178,2]
[352737775,1739283089520,-7282.99,0.0001178,2]
[352737776,1739283089529,-1952.41,0.0001178,2]
[352737777,1739283089539,-701.48,0.0001178,2]
[352737778,1739283089550,-500.0,0.0001178,2]
[352737779,1739283089562,-1931.94,0.0001178,2]
[352737780,1739283089572,-500.0,0.0001178,2]
[352737781,1739283089582,-5326.26,0.0001178,2]
[352737782,1739283089592,-500.0,0.0001178,2]
[352737783,1739283089602,-3327.15,0.0001178,2]
[352737784,1739283089611,-1259.82,0.0001178,2]
[352737785,1739283089621,-500.0,0.0001178,2]
[352737786,1739283089635,-667.96,0.0001178,2]
[352737787,1739283089644,-500.0,0.0001178,2]
[352737788,1739283089654,-3450.17,0.0001178,2]
[352737789,1739283089663,-500.0,0.0001178,2]
[352737790,1739283089673,-1704.66,0.0001178,2]
[352737791,1739283089683,-500.0,0.0001178,2]
[352737792,1739283089693,-500.0,0.0001178,2]
[352737793,1739283089702,-2127.38,0.0001178,2]
[352737794,1739283089712,-500.0,0.0001178,2]
[352737795,1739283089722,-500.0,0.0001178,2]
[352737796,1739283089732,-1476.79,0.0001178,2]
[352737797,1739283089742,-1839.16,0.0001178,2]
[352737798,1739283089751,-889.84,0.0001178,2]
[352737799,1739283089761,-2565.16,0.0001178,2]
[352737800,1739283089770,-2467.78,0.0001178,2]
[352737801,1739283089780,-500.0,0.0001178,2]
[352737802,1739283089789,-1657.8,0.0001178,2]
[352737803,1739283089799,-683.49,0.0001178,2]
[352737804,1739283089810,-493.0931158,0.0001178,2]
[352737805,1739283089819,-500.0,0.0001178,2]
[352737806,1739283089829,-1036.17,0.0001178,2]
[352737807,1739283089838,-2953.99,0.0001178,2]
[352737808,1739283089848,-500.0,0.0001178,2]
[352737809,1739283089858,-1433.77,0.0001178,2]
[352737810,1739283089867,-2380.39,0.0001178,2]
[352737811,1739283089877,-1071.62,0.0001178,2]
[352737812,1739283089887,-1274.15,0.0001178,2]
[352737813,1739283089896,-500.0,0.0001178,2]
[352737814,1739283089905,-855.01,0.0001178,2]
[352737815,1739283089915,-1027.27,0.0001178,2]
[352737816,1739283089925,-1213.71,0.0001178,2]
[352737817,1739283089936,-500.0,0.0001178,2]
[352737818,1739283089946,-2875.82,0.0001178,2]
[352737819,1739283089956,-727.11,0.0001178,2]
[352737820,1739283089966,-500.0,0.0001178,2]
[352737821,1739283089976,-1743.04,0.0001178,2]
[352737822,1739283089985,-2037.92,0.0001178,2]
[352737823,1739283089995,-713.14,0.0001178,2]
[352737824,1739283090005,-2384.33,0.0001178,2]
[352737825,1739283090015,-1210.9,0.0001178,2]
[352737826,1739283090025,-3335.18,0.0001178,2]
[352737827,1739283090034,-150.0,0.00011803,2]
[352737828,1739283090044,-328.41527795,0.00011805,2]
[352737829,1739283090054,-1366.0,0.00011807,2]
[352737830,1739283090065,-202.0,0.0001181,2]
[352737831,1739283090074,-205.0,0.0001181,2]
[352737832,1739283090083,-202.0,0.0001181,2]
[352737833,1739283090093,-150.0,0.00011811,2]
[352737834,1739283090102,-150.0,0.00011815,2]
[352737835,1739283090112,-754.87574914,0.00011817,2]
[352737836,1739283090122,-1366.0,0.00011835,2]
[352737837,1739283090131,-452.87950134,0.00011848,2]
[352737838,1739283090140,-150.0,0.00011857,2]
[352737839,1739283090150,-150.0,0.00011859,2]
[352737840,1739283090159,-1366.0,0.00011862,2]
[352737841,1739283090169,-1000.0,0.0001187,2]
[352737842,1739283090178,-400.0,0.0001187,2]
[352737843,1739283090187,-150.0,0.00011883,2]
[352737844,1739283090197,-1366.0,0.0001189,2]
[352737845,1739283090207,-4520.95511974,0.000119,2]
[352737846,1739283090215,-150.0,0.000119,2]
[352737847,1739283090225,-2214.2608784,0.00011908,2]
[352737848,1739283090234,-2214.2608784,0.00011908,2]
[352737849,1739283090243,-2214.2608784,0.00011908,2]
[352737850,1739283090252,-630.9603609,0.00011908,2]
[352737851,1739283090262,-662.5071486,0.00011908,2]
[352737852,1739283090271,-694.0539363,0.00011908,2]
[352737853,1739283090280,-654.0499205,0.00011908,2]
[352737854,1739283090290,-684.3591146,0.00011908,2]
[352737855,1739283090300,-714.6683088,0.00011908,2]
[352737856,1739283090313,-629.779202,0.00011908,2]
[352737857,1739283090322,-658.9636717,0.00011908,2]
[352737858,1739283090332,-688.1481415,0.00011908,2]
[352737859,1739283090341,-3250.076618,0.00011909,2]
[352737860,1739283090350,-3250.076618,0.00011909,2]
[352737861,1739283090360,-3250.076618,0.00011909,2]
[352737862,1739283090369,-350.6188865,0.00011909,2]
[352737863,1739283090378,-350.6188865,0.00011909,2]
[352737864,1739283090388,-350.6188865,0.00011909,2]
[352737865,1739283090526,-524.64,0.0001191,2]
[352737866,1739283090539,-1114.15,0.00011911,2]
[352737867,1739283090548,-1907.79,0.00011911,2]
[352737868,1739283090560,-500.0,0.00011911,2]
[352737869,1739283090569,-2042.7,0.00011911,2]
[352737870,1739283090579,-2608.79,0.00011911,2]
[352737871,1739283090588,-1254833.59096555,0.00011916,3]
[352737872,1739283090598,-151.0,0.00011916,2]
[352737873,1739283090608,-151.0,0.00011916,2]
[352737874,1739283090618,-151.0,0.00011916,2]
[352737875,1739283090632,-8811.95329212,0.00011917,2]
[352737876,1739283090642,-1366.0,0.00011917,2]
[352737877,1739283090651,-151.0,0.00011917,2]
[352737878,1739283090661,-500.0,0.00011917,2]
[352737879,1739283090671,-500.0,0.00011917,2]
[352737880,1739283090680,-500.0,0.00011917,2]
[352737881,1739283090690,-572.6,0.00011917,2]
[352737882,1739283090700,-500.0,0.00011917,2]
[352737883,1739283090711,-500.0,0.00011917,2]
[352737884,1739283090721,-545.31,0.00011917,2]
[352737885,1739283090730,-329.9,0.00011917,2]
[352737886,1739283090740,-500.0,0.00011917,2]
[352737887,1739283090750,-297.18466,0.00011917,2]
[352737888,1739283090759,-500.0,0.00011917,2]
[352737889,1739283090769,-500.0,0.00011917,2]
[352737890,1739283090778,-623.89,0.00011917,2]
[352737891,1739283090788,-2289.514115,0.00011917,2]
[352737892,1739283090797,-500.0,0.00011917,2]
[352737893,1739283090810,-912.071354,0.00011917,2]
[352737894,1739283090820,-562.39,0.00011917,2]
[352737895,1739283090830,-500.0,0.00011917,2]
[352737896,1739283090840,-1335.42,0.00011917,2]
[352737897,1739283090849,-500.0,0.00011917,2]
[352737898,1739283090859,-500.0,0.00011917,2]
[352737899,1739283090869,-500.0,0.00011917,2]
[352737900,1739283090879,-500.0,0.00011917,2]
[352737901,1739283090889,-500.0,0.00011917,2]
[352737902,1739283090898,-1026.73,0.00011917,2]
[352737903,1739283090907,-500.0,0.00011917,2]
[352737904,1739283090917,-500.0,0.00011917,2]
[352737905,1739283090927,-1291.73,0.00011917,2]
[352737906,1739283090936,-500.0,0.00011917,2]
[352737907,1739283090945,-500.0,0.00011917,2]
[352737908,1739283090954,-500.0,0.00011917,2]
[352737909,1739283090964,-500.0,0.00011917,2]
[352737910,1739283090973,-1006.21,0.00011917,2]
[352737911,1739283090983,-500.0,0.00011917,2]
[352737912,1739283090993,-654.08,0.00011917,2]
[352737913,1739283091003,-500.0,0.00011917,2]
[352737914,1739283091013,-500.0,0.00011917,2]